fUSD/lending_fUSD_20241107
["ID","MTS","AMOUNT","RATE_DAILY","PERIOD"]
[341547017,1730972760717,-500.0,0.00030034,2]
[341547018,1730972760752,-360.80365905,0.00030034,2]
[341547019,1730972760779,-8208.1268,0.00030035,2]
[341547020,1730972763155,-81652.12169149,0.00030035,2]
[341547021,1730972763452,500.0,0.00042857,60]
[341547022,1730972763539,500.0,0.00042857,60]
[341547023,1730972763590,1015.0,0.00042857,30]
[341547024,1730972763652,500.0,0.00042857,60]
[341547025,1730972763721,530.32873318,0.00042857,60]
[341547026,1730972765839,326.71789337,0.00042857,120]
[341547027,1730972773821,1015.0,0.00042857,30]
[341547028,1730972784582,713.19846622,0.00042857,30]
[341547030,1730972814243,-250.0,0.00021,2]
[341547031,1730972814271,-300.0,0.00023,2]
[341547032,1730972814301,-350.0,0.00025,2]
[341547033,1730972814328,-1008.0,0.000251,3]
[341547034,1730972814357,-400.0,0.00027,2]
[341547035,1730972814385,-450.0,0.00029,2]
[341547036,1730972814413,-2500.0,0.00029935,2]
[341547037,1730972814440,-35895.23330851,0.00030035,2]
[341547038,1730972814467,-500.0,0.00030036,2]
[341547039,1730972814495,-381.8395,0.00030036,2]
[341547040,1730972814522,-414.19871365,0.00030036,2]
[341547041,1730972814552,-500.0,0.00030135,2]
[341547042,1730972814582,-500.0,0.00030135,2]
[341547043,1730972814612,-500.0,0.00030135,2]
[341547044,1730972814640,-500.0,0.00030135,2]
[341547045,1730972814670,-500.0,0.00030135,2]
[341547046,1730972814700,-500.0,0.00030135,2]
[341547047,1730972814729,-294.4377658,0.00030135,2]
[341547048,1730972814759,-500.0,0.00030135,2]
[341547049,1730972814790,-500.0,0.00030135,2]
[341547050,1730972814820,-500.0,0.00030135,2]
[341547051,1730972814849,-406.10643606,0.00030135,2]
[341547052,1730972814876,-500.0,0.00030136,4]
[341547053,1730972814904,-500.0,0.00030136,4]
[341547054,1730972814929,-500.0,0.00030136,4]
[341547055,1730972814959,-500.0,0.00030136,4]
[341547056,1730972814986,-500.0,0.00030136,4]
[341547057,1730972815012,-500.0,0.00030136,4]
[341547058,1730972815042,-500.0,0.00030136,4]
[341547059,1730972815069,-522.49,0.00030136,4]
[341547060,1730972815095,-500.0,0.00030136,4]
[341547061,1730972815123,-500.0,0.00030136,4]
[341547062,1730972815152,-500.0,0.00030136,4]
[341547063,1730972815179,-683.37,0.00030136,4]
[341547064,1730972815206,-500.0,0.00030136,4]
[341547065,1730972815234,-200.0,0.00030136,4]
[341547066,1730972815260,-500.0,0.00030136,4]
[341547067,1730972815288,-500.0,0.00030136,4]
[341547068,1730972815314,-500.0,0.00030136,4]
[341547069,1730972815340,-527.61,0.00030136,4]
[341547070,1730972815368,-579.65,0.00030136,4]
[341547071,1730972815395,-500.0,0.00030136,4]
[341547072,1730972815421,-500.0,0.00030136,4]
[341547073,1730972815447,-500.0,0.00030136,4]
[341547074,1730972815473,-500.0,0.00030136,4]
[341547075,1730972815499,-500.0,0.00030136,4]
[341547076,1730972815525,-500.0,0.00030136,4]
[341547077,1730972815551,-500.0,0.00030136,4]
[341547078,1730972815577,-500.0,0.00030136,4]
[341547079,1730972815603,-500.0,0.00030136,4]
[341547080,1730972815632,-500.0,0.00030136,4]
[341547081,1730972815659,-500.0,0.00030136,4]
[341547082,1730972815688,-500.0,0.00030136,4]
[341547083,1730972815715,-500.0,0.00030136,4]
[341547084,1730972815742,-500.0,0.00030136,4]
[341547085,1730972815769,-608.82,0.00030136,4]
[341547086,1730972815795,-500.0,0.00030136,4]
[341547087,1730972815822,-500.0,0.00030136,4]
[341547088,1730972815849,-500.0,0.00030136,4]
[341547089,1730972815875,-500.0,0.00030136,4]
[341547090,1730972815902,-500.0,0.00030136,4]
[341547091,1730972815928,-500.0,0.00030136,4]
[341547092,1730972815958,-500.0,0.00030136,4]
[341547093,1730972815985,-300.0,0.00030136,4]
[341547094,1730972816012,-500.0,0.00030136,4]
[341547095,1730972816041,-500.0,0.00030136,4]
[341547096,1730972816068,-500.0,0.00030136,4]
[341547097,1730972816094,-500.0,0.00030136,4]
[341547098,1730972816123,-500.0,0.00030136,4]
[341547099,1730972816151,-500.0,0.00030136,4]
[341547100,1730972816178,-500.0,0.00030136,4]
[341547101,1730972816204,-500.0,0.00030136,4]
[341547102,1730972816230,-500.0,0.00030136,4]
[341547103,1730972816258,-500.0,0.00030136,4]
[341547104,1730972816286,-594.66,0.00030136,4]
[341547105,1730972816313,-500.0,0.00030136,4]
[341547106,1730972816340,-500.0,0.00030136,4]
[341547107,1730972816368,-500.0,0.00030136,4]
[341547108,1730972816395,-500.0,0.00030136,4]
[341547109,1730972816422,-500.0,0.00030136,4]
[341547110,1730972816449,-500.0,0.00030136,4]
[341547111,1730972816477,-500.0,0.00030136,4]
[341547112,1730972816709,-1235.06,0.00030136,4]
[341547113,1730972816747,-430.29105318,0.00030136,4]
[341547114,1730972816775,-500.0,0.00030136,4]
[341547115,1730972816802,-500.0,0.00030136,4]
[341547116,1730972816829,-604.45,0.00030136,4]
[341547117,1730972816856,-500.0,0.00030136,4]
[341547118,1730972816882,-500.0,0.00030136,4]
[341547119,1730972816908,-500.0,0.00030136,4]
[341547120,1730972816934,-1104.11,0.00030136,4]
[341547121,1730972816963,-500.0,0.00030136,4]
[341547122,1730972816990,-500.0,0.00030136,4]
[341547123,1730972817017,-500.0,0.00030136,4]
[341547124,1730972817045,-500.0,0.00030136,4]
[341547125,1730972817072,-500.0,0.00030136,4]
[341547126,1730972817099,-500.0,0.00030136,4]
[341547127,1730972817126,-599.24042692,0.00030136,4]
[341547128,1730972817153,-500.0,0.00030136,4]
[341547129,1730972817180,-500.0,0.00030136,4]
[341547130,1730972817207,-500.0,0.00030136,4]
[341547131,1730972817234,-500.0,0.00030136,4]
[341547132,1730972817260,-610.41,0.00030136,4]
[341547133,1730972817287,-500.0,0.00030136,4]
[341547134,1730972817314,-500.0,0.00030136,4]
[341547135,1730972817340,-500.0,0.00030136,4]
[341547136,1730972817366,-500.0,0.00030136,4]
[341547137,1730972817394,-952.46,0.00030136,4]
[341547138,1730972817420,-500.0,0.00030136,4]
[341547139,1730972817448,-500.0,0.00030136,4]
[341547140,1730972817475,-500.0,0.00030136,4]
[341547141,1730972817501,-546.8,0.00030136,4]
[341547142,1730972817527,-500.0,0.00030136,4]
[341547143,1730972817554,-500.0,0.00030136,4]
[341547144,1730972817581,-500.0,0.00030136,4]
[341547145,1730972817609,-500.0,0.00030136,4]
[341547146,1730972817635,-500.0,0.00030136,4]
[341547147,1730972817662,-500.0,0.00030136,4]
[341547148,1730972817692,-640.47,0.00030136,4]
[341547149,1730972817723,-500.0,0.00030136,4]
[341547150,1730972817755,-500.0,0.00030136,4]
[341547151,1730972817784,-500.0,0.00030136,4]
[341547152,1730972817813,-500.0,0.00030136,4]
[341547153,1730972817840,-500.0,0.00030136,4]
[341547154,1730972817867,-1106.04,0.00030136,4]
[341547155,1730972817892,-664.35,0.00030136,4]
[341547156,1730972817918,-1290.17,0.00030136,4]
[341547157,1730972817948,-939.43,0.00030136,4]
[341547158,1730972817974,-622.93,0.00030136,4]
[341547159,1730972818001,-500.0,0.00030136,4]
[341547160,1730972818029,-500.0,0.00030136,4]
[341547161,1730972818055,-500.0,0.00030136,4]
[341547162,1730972818081,-532.92456553,0.00030136,4]
[341547163,1730972818106,-500.0,0.00030136,4]
[341547164,1730972818133,-501.10313519,0.00030136,4]
[341547165,1730972818159,-500.0,0.00030136,4]
[341547166,1730972818187,-1016.62,0.00030136,4]
[341547167,1730972818214,-500.0,0.00030136,4]
[341547168,1730972818240,-1073.91,0.00030136,4]
[341547169,1730972818267,-500.0,0.00030136,4]
[341547170,1730972818297,-500.0,0.00030136,4]
[341547171,1730972818325,-759.06,0.00030136,4]
[341547172,1730972818352,-500.0,0.00030136,4]
[341547173,1730972818380,-243.72943629,0.00030136,4]
[341547174,1730972818407,-1416.9,0.00030136,4]
[341547175,1730972818433,-500.0,0.00030136,4]
[341547176,1730972818459,-500.0,0.00030136,4]
[341547177,1730972818485,-847.89,0.00030136,4]
[341547178,1730972818511,-500.0,0.00030136,4]
[341547179,1730972818538,-1107.59,0.00030136,4]
[341547180,1730972818564,-500.0,0.00030136,4]
[341547181,1730972818591,-1011.52,0.00030136,4]
[341547182,1730972818617,-810.47,0.00030136,4]
[341547183,1730972818644,-500.0,0.00030136,4]
[341547184,1730972818670,-655.54,0.00030136,4]
[341547185,1730972818699,-500.0,0.00030136,4]
[341547186,1730972818725,-500.0,0.00030136,4]
[341547187,1730972818752,-925.87,0.00030136,4]
[341547188,1730972818780,-500.0,0.00030136,4]
[341547189,1730972818808,-500.0,0.00030136,4]
[341547190,1730972818835,-500.0,0.00030136,4]
[341547191,1730972818862,-500.0,0.00030136,4]
[341547192,1730972818888,-500.0,0.00030136,4]
[341547193,1730972818915,-500.0,0.00030136,4]
[341547194,1730972818943,-500.0,0.00030136,4]
[341547195,1730972818969,-500.0,0.00030136,4]
[341547196,1730972818996,-500.0,0.00030136,4]
[341547197,1730972819024,-500.0,0.00030136,4]
[341547198,1730972819049,-524.44613691,0.00030136,4]
[341547199,1730972819075,-500.0,0.00030136,4]
[341547200,1730972819100,-887.59,0.00030136,4]
[341547201,1730972819128,-500.0,0.00030136,4]
[341547202,1730972819154,-500.0,0.00030136,4]
[341547203,1730972819180,-500.0,0.00030136,4]
[341547204,1730972819206,-500.0,0.00030136,4]
[341547205,1730972819232,-976.84,0.00030136,4]
[341547206,1730972819258,-500.0,0.00030136,4]
[341547207,1730972819285,-500.0,0.00030136,4]
[341547208,1730972819311,-857.15,0.00030136,4]
[341547209,1730972819336,-500.0,0.00030136,4]
[341547210,1730972819363,-1105.63,0.00030136,4]
[341547211,1730972819389,-500.0,0.00030136,4]
[341547212,1730972819415,-500.0,0.00030136,4]
[341547213,1730972819441,-500.0,0.00030136,4]
[341547214,1730972819466,-937.76,0.00030136,4]
[341547215,1730972819492,-500.0,0.00030136,4]
[341547216,1730972819519,-592.8,0.00030136,4]
[341547217,1730972819547,-1103.15,0.00030136,4]
[341547218,1730972819574,-500.0,0.00030136,4]
[341547219,1730972819601,-500.0,0.00030136,4]
[341547220,1730972819628,-569.75,0.00030136,4]
[341547221,1730972819656,-500.0,0.00030136,4]
[341547222,1730972819687,-848.97,0.00030136,4]
[341547223,1730972819714,-500.0,0.00030136,4]
[341547224,1730972819743,-590.53,0.00030136,4]
[341547225,1730972819772,-674.42287195,0.00030136,10]
[341547226,1730972819801,-1524.29,0.00030136,4]
[341547227,1730972819830,-500.0,0.00030136,4]
[341547228,1730972819856,-672.13,0.00030136,4]
[341547229,1730972819887,-500.0,0.00030136,4]
[341547230,1730972819922,-500.0,0.00030136,4]
[341547231,1730972819957,-1134.77,0.00030136,4]
[341547232,1730972819990,-660.53,0.00030136,4]
[341547233,1730972820023,-1010.32,0.00030136,4]
[341547234,1730972820063,-500.0,0.00030136,4]
[341547235,1730972820099,-686.37,0.00030136,4]
[341547236,1730972820134,-287.80235668,0.00030136,4]
[341547237,1730972820166,-500.0,0.00030136,4]
[341547238,1730972820199,-500.0,0.00030136,4]
[341547239,1730972820232,-606.52,0.00030136,4]
[341547240,1730972820265,-500.0,0.00030136,4]
[341547241,1730972820298,-821.74,0.00030136,4]
[341547242,1730972820328,-500.0,0.00030136,4]
[341547243,1730972820359,-500.0,0.00030136,4]
[341547244,1730972820391,-1089.13,0.00030136,4]
[341547245,1730972820424,-826.91,0.00030136,4]
[341547246,1730972820457,-729.32,0.00030136,4]
[341547247,1730972820488,-1004.56,0.00030136,4]
[341547248,1730972820518,-500.0,0.00030136,4]
[341547249,1730972820558,-720.13,0.00030136,4]
[341547250,1730972820592,-684.61,0.00030136,4]
[341547251,1730972820624,-500.0,0.00030136,4]
[341547252,1730972820659,-903.54,0.00030136,4]
[341547253,1730972820697,-500.0,0.00030136,4]
[341547254,1730972820728,-500.0,0.00030136,4]
[341547255,1730972820760,-500.0,0.00030136,4]
[341547256,1730972820796,-595.66,0.00030136,4]
[341547257,1730972820827,-731.96,0.00030136,4]
[341547258,1730972820858,-500.0,0.00030136,4]
[341547259,1730972820890,-500.0,0.00030136,4]
[341547260,1730972820927,-500.0,0.00030136,4]
[341547261,1730972820961,-500.0,0.00030136,4]
[341547262,1730972820994,-979.66,0.00030136,4]
[341547263,1730972821027,-500.0,0.00030136,4]
[341547264,1730972821057,-500.0,0.00030136,4]
[341547265,1730972821088,-737.13,0.00030136,4]
[341547266,1730972821119,-907.81,0.00030136,4]
[341547267,1730972821149,-930.44,0.00030136,4]
[341547268,1730972821180,-500.0,0.00030136,4]
[341547269,1730972821211,-504.66,0.00030136,4]
[341547270,1730972821242,-999.16,0.00030136,4]
[341547271,1730972821271,-500.0,0.00030136,4]
[341547272,1730972821304,-500.0,0.00030136,4]
[341547273,1730972821337,-566.5,0.00030136,4]
[341547274,1730972821368,-1256.97,0.00030136,4]
[341547275,1730972821400,-991.76,0.00030136,4]
[341547276,1730972821431,-500.0,0.00030136,4]
[341547277,1730972821462,-500.0,0.00030136,4]
[341547278,1730972821493,-819.96,0.00030136,4]
[341547279,1730972821523,-500.0,0.00030136,4]
[341547280,1730972821556,-500.0,0.00030136,4]
[341547281,1730972821589,-500.0,0.00030136,4]
[341547282,1730972821620,-500.0,0.00030136,4]
[341547283,1730972821653,-500.0,0.00030136,4]
[341547284,1730972821686,-1212.47,0.00030136,4]
[341547285,1730972821718,-500.0,0.00030136,4]
[341547286,1730972821750,-500.0,0.00030136,4]
[341547287,1730972821781,-500.0,0.00030136,4]
[341547288,1730972821813,-500.0,0.00030136,4]
[341547289,1730972821844,-500.0,0.00030136,4]
[341547290,1730972821875,-741.02,0.00030136,4]
[341547291,1730972821906,-500.0,0.00030136,4]
[341547292,1730972821940,-741.26,0.00030136,4]
[341547293,1730972821972,-500.0,0.00030136,4]
[341547294,1730972822003,-500.0,0.00030136,4]
[341547295,1730972822039,-503.12,0.00030136,4]
[341547296,1730972822069,-500.0,0.00030136,4]
[341547297,1730972822099,-1077.81,0.00030136,4]
[341547298,1730972822130,-500.0,0.00030136,4]
[341547299,1730972822161,-747.52,0.00030136,4]
[341547300,1730972822191,-500.0,0.00030136,4]
[341547301,1730972822222,-500.0,0.00030136,4]
[341547302,1730972822252,-500.0,0.00030136,4]
[341547303,1730972822284,-500.0,0.00030136,4]
[341547304,1730972822316,-500.0,0.00030136,4]
[341547305,1730972822346,-500.0,0.00030136,4]
[341547306,1730972822377,-500.0,0.00030136,4]
[341547307,1730972822407,-500.0,0.00030136,4]
[341547308,1730972822437,-814.46,0.00030136,4]
[341547309,1730972823019,-500.0,0.00030136,4]
[341547310,1730972823086,-500.0,0.00030136,4]
[341547311,1730972823115,-1235.83,0.00030136,4]
[341547312,1730972823144,-500.0,0.00030136,4]
[341547313,1730972823174,-500.0,0.00030136,4]
[341547314,1730972823204,-500.0,0.00030136,4]
[341547315,1730972823232,-1217.86,0.00030136,4]
[341547316,1730972823262,-500.0,0.00030136,4]
[341547317,1730972823296,-693.75,0.00030136,4]
[341547318,1730972823326,-500.0,0.00030136,4]
[341547319,1730972823356,-1650.2,0.00030136,4]
[341547320,1730972823386,-845.01,0.00030136,4]
[341547321,1730972823417,-500.0,0.00030136,4]
[341547322,1730972823446,-500.0,0.00030136,4]
[341547323,1730972823476,-500.0,0.00030136,4]
[341547324,1730972823506,-500.0,0.00030136,4]
[341547325,1730972823539,-500.0,0.00030136,4]
[341547326,1730972823569,-953.32,0.00030136,4]
[341547327,1730972823600,-500.0,0.00030136,4]
[341547328,1730972823630,-500.0,0.00030136,4]
[341547329,1730972823660,-900.59,0.00030136,4]
[341547331,1730972838659,-220.01,0.00029363,2]
[341547332,1730972838670,-151.0,0.0003,120]
[341547333,1730972838680,-9.28,0.00030126,10]
[341547334,1730972838696,-545.28858666,0.00030126,10]
[341547335,1730972848105,-2452.645,0.00029934,2]
[341547336,1730972848125,-3603.23989641,0.00029935,2]
[341547337,1730972848152,-14189.6617195,0.00029935,2]
[341547338,1730972851095,-37461.64324694,0.00029935,2]
[341547339,1730972867558,196.0,0.00042999,30]
[341547340,1730972868504,196.0,0.00042999,30]
[341547341,1730972869586,196.0,0.00042999,30]
[341547342,1730972869993,200.0,0.00042999,30]
[341547343,1730972870543,192.0,0.00042999,30]
[341547344,1730972871766,200.0,0.00042999,30]
[341547345,1730972872077,192.0,0.00042999,30]
[341547346,1730972906983,2147.71058499,0.00042999,120]
[341547348,1730973020925,150.0,0.00018123,2]
[341547361,1730973032431,-1331.36,0.00027617,2]
[341547362,1730973032441,-268.02,0.00027995,2]
[341547363,1730973032450,-185.1,0.00029382,2]
[341547364,1730973032459,-360.0,0.00029412,2]
[341547365,1730973032469,-250.0,0.00029568,2]
[341547366,1730973032478,-250.0,0.00029635,2]
[341547367,1730973032487,-1331.36,0.00029881,2]
[341547368,1730973032496,-999.99,0.00029881,2]
[341547369,1730973032507,-44745.45513715,0.00029935,2]
[341547370,1730973032516,-283.5305,0.00029935,2]
[341547372,1730973032525,-1220.16,0.00030036,2]
[341547374,1730973032534,-2500.0,0.00030036,2]
[341547375,1730973032543,-500.0,0.00030135,2]
[341547376,1730973032553,-444.7205388,0.00030135,2]
[341547377,1730973032562,-557.68,0.00030136,4]
[341547378,1730973032571,-500.0,0.00030136,4]
[341547380,1730973032581,-517.01,0.00030136,4]
[341547382,1730973032590,-500.0,0.00030136,4]
[341547384,1730973032599,-500.0,0.00030136,4]
[341547386,1730973032608,-500.0,0.00030136,4]
[341547387,1730973032617,-500.0,0.00030136,4]
[341547389,1730973032627,-830.74,0.00030136,4]
[341547392,1730973032638,-806.19,0.00030136,4]
[341547394,1730973032647,-500.0,0.00030136,4]
[341547396,1730973032656,-500.0,0.00030136,4]
[341547398,1730973032666,-500.0,0.00030136,4]
[341547399,1730973032675,-1020.6,0.00030136,4]
[341547401,1730973032685,-500.0,0.00030136,4]
[341547403,1730973032694,-500.0,0.00030136,4]
[341547405,1730973032703,-500.0,0.00030136,4]
[341547407,1730973032712,-500.0,0.00030136,4]
[341547409,1730973032723,-747.54,0.00030136,4]
[341547411,1730973032733,-656.65,0.00030136,4]
[341547413,1730973032743,-500.0,0.00030136,4]
[341547415,1730973032754,-500.0,0.00030136,4]
[341547417,1730973032764,-500.0,0.00030136,4]
[341547419,1730973032774,-726.81,0.00030136,4]
[341547421,1730973032783,-845.98,0.00030136,4]
[341547423,1730973032791,-811.85,0.00030136,4]
[341547425,1730973032801,-392.95233723,0.00030136,4]
[341547427,1730973032813,-500.0,0.00030136,4]
[341547429,1730973032825,-500.0,0.00030136,4]
[341547431,1730973032835,-500.0,0.00030136,4]
[341547434,1730973032845,-500.0,0.00030136,4]
[341547436,1730973032854,-244.88326319,0.00030136,4]
[341547438,1730973032864,-293.37,0.00030136,4]
[341547440,1730973032873,-2117.2,0.00030136,4]
[341547442,1730973032883,-500.0,0.00030136,4]
[341547444,1730973032893,-807.92,0.00030136,4]
[341547446,1730973032902,-1299.97,0.00030136,4]
[341547448,1730973032911,-500.0,0.00030136,4]
[341547450,1730973032920,-500.0,0.00030136,4]
[341547452,1730973032930,-500.0,0.00030136,4]
[341547454,1730973032939,-500.0,0.00030136,4]
[341547456,1730973032948,-568.91,0.00030136,4]
[341547458,1730973032958,-500.0,0.00030136,4]
[341547459,1730973032967,-500.0,0.00030136,4]
[341547461,1730973032977,-500.0,0.00030136,4]
[341547463,1730973032988,-500.0,0.00030136,4]
[341547465,1730973032999,-596.56,0.00030136,4]
[341547467,1730973033008,-500.0,0.00030136,4]
[341547469,1730973033019,-500.0,0.00030136,4]
[341547471,1730973033028,-500.0,0.00030136,4]
[341547472,1730973033038,-500.0,0.00030136,4]
[341547473,1730973033047,-1225.81,0.00030136,4]
[341547474,1730973033057,-500.0,0.00030136,4]
[341547475,1730973033067,-500.0,0.00030136,4]
[341547476,1730973033077,-500.0,0.00030136,4]
[341547477,1730973033086,-355.26876128,0.00030136,4]
[341547478,1730973033095,-880.84,0.00030136,4]
[341547479,1730973033104,-500.0,0.00030136,4]
[341547480,1730973033115,-500.0,0.00030136,4]
[341547481,1730973033124,-500.0,0.00030136,4]
[341547482,1730973033134,-500.0,0.00030136,4]
[341547483,1730973033143,-500.0,0.00030136,4]
[341547485,1730973033152,-754.65,0.00030136,4]
[341547486,1730973033162,-668.08,0.00030136,4]
[341547488,1730973033172,-500.0,0.00030136,4]
[341547490,1730973033181,-500.0,0.00030136,4]
[341547492,1730973033190,-500.0,0.00030136,4]
[341547494,1730973033200,-500.0,0.00030136,4]
[341547496,1730973033209,-587.87,0.00030136,2]
[341547498,1730973033219,-1064.8,0.00030136,4]
[341547500,1730973033228,-500.0,0.00030136,4]
[341547502,1730973033238,-838.59,0.00030136,4]
[341547504,1730973033247,-705.57,0.00030136,4]
[341547506,1730973033257,-500.0,0.00030136,4]
[341547508,1730973033267,-500.0,0.00030136,4]
[341547510,1730973033276,-500.0,0.00030136,4]
[341547512,1730973033286,-500.0,0.00030136,4]
[341547514,1730973033296,-670.85,0.00030136,4]
[341547516,1730973033305,-500.0,0.00030136,4]
[341547518,1730973033314,-500.0,0.00030136,4]
[341547520,1730973033324,-500.0,0.00030136,4]
[341547522,1730973033334,-600.84,0.00030136,4]
[341547524,1730973033343,-500.0,0.00030136,4]
[341547526,1730973033353,-500.0,0.00030136,4]
[341547529,1730973033365,-698.55,0.00030136,4]
[341547531,1730973033375,-828.4,0.00030136,4]
[341547533,1730973033384,-685.99,0.00030136,4]
[341547535,1730973033393,-500.0,0.00030136,4]
[341547537,1730973033403,-579.93,0.00030136,4]
[341547539,1730973033412,-628.34114139,0.00030136,4]
[341547541,1730973033422,-500.0,0.00030136,4]
[341547543,1730973033432,-1191.6,0.00030136,4]
[341547545,1730973033441,-500.0,0.00030136,4]
[341547547,1730973033451,-500.0,0.00030136,4]
[341547549,1730973033460,-500.0,0.00030136,4]
[341547551,1730973033472,-500.0,0.00030136,4]
[341547553,1730973033482,-500.0,0.00030136,4]
[341547555,1730973033492,-500.0,0.00030136,4]
[341547557,1730973033501,-500.0,0.00030136,4]
[341547559,1730973033510,-500.0,0.00030136,4]
[341547561,1730973033521,-500.0,0.00030136,4]
[341547563,1730973033531,-514.2,0.00030136,4]
[341547564,1730973033540,-500.0,0.00030136,4]
[341547566,1730973033550,-500.0,0.00030136,4]
[341547568,1730973033559,-791.47,0.00030136,4]
[341547570,1730973033568,-500.0,0.00030136,4]
[341547572,1730973033578,-1447.93,0.00030136,4]
[341547574,1730973033588,-500.0,0.00030136,4]
[341547576,1730973033598,-500.0,0.00030136,4]
[341547578,1730973033607,-1133.72,0.00030136,4]
[341547580,1730973033617,-500.0,0.00030136,4]
[341547582,1730973033626,-500.0,0.00030136,4]
[341547584,1730973033636,-500.0,0.00030136,4]
[341547586,1730973033646,-1470.59,0.00030136,4]
[341547588,1730973033655,-1173.08,0.00030136,4]
[341547590,1730973033664,-500.0,0.00030136,4]
[341547592,1730973033675,-500.0,0.00030136,4]
[341547593,1730973033684,-577.35,0.00030136,4]
[341547595,1730973033694,-500.0,0.00030136,4]
[341547597,1730973033704,-500.0,0.00030136,4]
[341547599,1730973033714,-500.0,0.00030136,4]
[341547601,1730973033726,-500.0,0.00030136,4]
[341547603,1730973033736,-500.0,0.00030136,4]
[341547605,1730973033746,-500.0,0.00030136,4]
[341547607,1730973033756,-500.0,0.00030136,4]
[341547640,1730973033768,-500.0,0.00030136,4]
[341547645,1730973034128,-500.0,0.00030136,4]
[341547647,1730973034138,-500.0,0.00030136,4]
[341547649,1730973034148,-500.0,0.00030136,4]
[341547651,1730973034158,-500.0,0.00030136,4]
[341547653,1730973034168,-500.0,0.00030136,4]
[341547655,1730973034179,-867.46,0.00030136,4]
[341547657,1730973034189,-741.93,0.00030136,4]
[341547659,1730973034200,-500.0,0.00030136,4]
[341547661,1730973034210,-575.26,0.00030136,4]
[341547663,1730973034223,-556.99,0.00030136,4]
[341547665,1730973034232,-1310.81,0.00030136,4]
[341547667,1730973034242,-500.0,0.00030136,4]
[341547669,1730973034252,-500.0,0.00030136,4]
[341547671,1730973034262,-500.0,0.00030136,4]
[341547673,1730973034272,-573.83,0.00030136,4]
[341547675,1730973034282,-524.96,0.00030136,4]
[341547677,1730973034292,-500.0,0.00030136,4]
[341547679,1730973034302,-500.0,0.00030136,4]
[341547681,1730973034311,-1797.89,0.00030136,4]
[341547683,1730973034321,-590.98442921,0.00030136,4]
[341547685,1730973034330,-500.0,0.00030136,4]
[341547686,1730973034340,-537.29,0.00030136,4]
[341547688,1730973034349,-3030.89,0.00030136,4]
[341547690,1730973034359,-500.0,0.00030136,4]
[341547692,1730973034369,-500.0,0.00030136,4]
[341547694,1730973034379,-500.0,0.00030136,4]
[341547696,1730973034388,-500.0,0.00030136,4]
[341547698,1730973034398,-681.21,0.00030136,4]
[341547699,1730973034408,-500.0,0.00030136,4]
[341547700,1730973034417,-500.0,0.00030136,4]
[341547701,1730973034426,-500.0,0.00030136,4]
[341547702,1730973034436,-556.42,0.00030136,4]